Cogmind - Beta 10.2 @@@ ROGUE MODE // 2022.01.24 @ 14:12:52 Player: SergeMan Result: Destroyed by G-47 Trooper with Particle Gun Performance ------------- Evolutions (0) 0 Regions Visited (2) 400 Robots Destroyed (45) 225 Value Destroyed (1137) 1137 Prototype IDs (0) 0 Alien Tech Used (0) 0 Bonus (131) 131 TOTAL SCORE: 1893 Bonus ------- High Alert Combat Kills 131 Cogmind --------- Core Integrity 0/250 Matter 300/300 Energy 210/250 System Corruption 2% Temperature Cool (67) Movement Treading (160) Location -10/Mines Parts ------- > --- POWER (1) -------- Ion Engine > --- PROPULSION (2) --- Light Treads Light Treads > --- UTILITY (2) ------ Large Storage Unit Hacking Suite > --- WEAPON (2) ------- EM Shotgun EM Shotgun > --- INVENTORY (10) --- Ion Engine Wheel Improved Heat Sink Large Storage Unit Light Armor Plating Light Armor Plating Sensor Drone Bay EM Shotgun Peak State ------------ > --- POWER ------------ Ion Engine > --- PROPULSION ------- Light Treads Wheel > --- UTILITY ---------- Small Storage Unit Hacking Suite > --- WEAPON ----------- EM Shotgun EM Shotgun > --- INVENTORY -------- Ion Engine Light Treads Improved Heat Sink Light Armor Plating EM Shotgun EM Shotgun [Rating: 12] Favorites ----------- Power Ion Engine Engine Ion Engine Propulsion Light Treads Treads Light Treads Leg Aluminum Leg Wheel Wheel Utility Small Storage Unit Storage Small Storage Unit Processor Signal Interpreter Hackware Hacking Suite Weapon EM Shotgun Energy Gun EM Shotgun Ballistic Gun Light Assault Rifle Build | -11 -10 -10 ------- Run | Scr Mat Min Slots Evolved . | . . . Power . | . . . Propulsion . | . . . Utility . | . . . Weapon . | . . . Parts Attached 34 | 3 28 3 Power 2 | . 2 . Engine 2 | . 2 . Core . | . . . Reactor . | . . . Propulsion 16 | 2 11 3 Treads 8 | 1 5 2 Leg 1 | . 1 . Wheel 7 | 1 5 1 Hover . | . . . Flight . | . . . Utility 4 | . 4 . Device . | . . . Storage 2 | . 2 . Processor 1 | . 1 . Hackware 1 | . 1 . Protection . | . . . Artifact . | . . . Weapon 12 | 1 11 . Energy Gun 11 | 1 10 . Energy Cannon . | . . . Ballistic Gun 1 | . 1 . Ballistic Cannon . | . . . Launcher . | . . . Special Weapon . | . . . Impact Weapon . | . . . Slashing Weapon . | . . . Piercing Weapon . | . . . Special Melee Weapon . | . . . Unidentified Prototypes . | . . . Parts Lost 4 | . 4 . Power . | . . . Propulsion 1 | . 1 . Utility . | . . . Weapon 3 | . 3 . Highest Loss Streak 3 | . 3 . Average Slot Usage (%) 97 | . 96 100 Engine 13 | . 13 14 Treads 16 | . 15 20 Wheel 11 | . 11 8 Storage 14 | . 14 14 Processor 3 | . 4 . Hackware 9 | . 9 14 Energy Gun 25 | . 25 28 Ballistic Gun 1 | . 1 . Naked Turns . | . . . Heaviest Build 27 | 11 27 27 Greatest Support 40 | 10 40 40 Greatest Overweight (x) 2 | 1 2 2 Average Overweight (x) . | 1 . 1 Largest Inventory Capacity 10 | 6 10 10 Average Capacity 6 | 6 6 10 Most Carried 8 | 6 7 8 Average Carried 5 | 4 4 7 Final Capacity 10 | 6 10 10 Final Carried 8 | 3 7 8 Class Distribution -------------------- 97% | Mutant Dominant Class ---------------- Mutant | -10/Materials Mutant | -10/Mines Resources | -11 -10 -10 ----------- Run | Scr Mat Min Matter Collected 561 | 204 327 30 Remotely . | . . . Salvage Created 1503 | . 1411 92 Parts 97 | . 88 9 Haulers Intercepted 1 | . 1 . Recyclers Shooed . | . . . Parts Field Recycled . | . . . Retrieved Matter . | . . . Parts Self-Destructed . | . . . Prevented . | . . . Kills | -11 -10 -10 ------- Run | Scr Mat Min Combat Hostiles Destroyed 35 | . 31 4 Guns 34 | . 30 4 AOE 1 | . 1 . Classes Destroyed 7 | . 7 . Worker 1 | . 1 . Builder 1 | . 1 . Hauler 1 | . 1 . Operator 4 | . 4 . Watcher 3 | . 3 . Swarmer 9 | . 6 3 Grunt 26 | . 25 1 Best Kill Streak 8 | . 8 3 Combat Bots Only 7 | . 7 3 Max Kills in Single Turn 2 | . 2 2 Gunslinging 1 | . 1 . Exploded 1 | . 1 . Melee . | . . . Uniques/NPCs Destroyed . | . . . Combat | -11 -10 -10 -------- Run | Scr Mat Min Damage Taken 1190 | . 1026 164 Core 253 | . 223 30 Absorbed by Shields . | . . . Core Remaining (%) 100 | 100 . . Volleys Fired 122 | . 112 10 Largest 2 | . 2 2 Hottest 90 | . 90 90 Shots Fired 216 | . 196 20 Gun 216 | . 196 20 Cannon . | . . . Launcher . | . . . Special . | . . . Kinetic 36 | . 36 . Thermal 45 | . 45 . Explosive . | . . . Electromagnetic 135 | . 115 20 Robot Hit Streak 11 | . 11 11 Robot Miss Streak 5 | . 5 3 Penetration Max . | . . . Secondary Targets 4 | . 4 . Max Gunslinging Chain 1 | . 1 . Shots Hit Robots 157 | . 141 16 Core Hits 81 | . 73 8 Critical Hits . | . . . Critical Kills . | . . . Critical Parts Destroyed . | . . . Melee Attacks . | . . . Impact . | . . . Slashing . | . . . Piercing . | . . . Sneak Attacks . | . . . Combat Hostiles . | . . . Follow-up Attacks . | . . . Damage Inflicted 2089 | . 1916 173 Guns 1852 | . 1679 173 Cannons . | . . . Explosions 237 | . 237 . Melee . | . . . Ramming . | . . . Kinetic 187 | . 187 . Thermal 550 | . 550 . Explosive . | . . . Electromagnetic 1352 | . 1179 173 Impact . | . . . Slashing . | . . . Piercing . | . . . Highest Corruption 2 | . 2 2 Average Corruption 2 | . 2 2 Corruption Purged . | . . . Effects 18 | . 17 1 Message Errors 6 | . 5 1 Heat Flow Errors 2 | . 2 . Data Loss (minor) 7 | . 7 . Targeting Errors 2 | . 2 . Weapon Failures 1 | . 1 . Overload Shots . | . . . Overflow Damage 6 | . 6 . Projectiles . | . . . Explosions 6 | . 6 . Melee . | . . . Knockbacks . | . . . Impact . | . . . Kinetic . | . . . Secondary . | . . . Self-Inflicted Damage 101 | . 101 . Shots 3 | . 3 . Rammed . | . . . Targets Rammed . | . . . Kicked . | . . . Crushed . | . . . Highest Temperature 312 | . 312 108 Average Temperature 81 | . 86 42 Received Heat Transfer 498 | . 429 69 Effects 1 | . 1 . Energy Bleed 1 | . 1 . Siege Activations . | . . . Robots Corrupted 1 | . 1 . Combat Hostiles . | . . . Parts Fried 4 | . 4 . Impact Corruptions . | . . . Robots Melted . | . . . Combat Hostiles . | . . . Parts Melted . | . . . Heat Transferred 1150 | . 1150 . Parts Sabotaged . | . . . Parts Stolen . | . . . Parts Stripped . | . . . Power Chain Reactions 5 | . 5 . Missiles Intercepted . | . . . Alert | -11 -10 -10 ------- Run | Scr Mat Min Peak Influence 587 | . 587 275 Initial 125 | . . 125 Average 358 | . 376 202 Maximum Alert Level 2 | . 2 1 Low Security (%) 14 | 100 12 25 Level 1 40 | . 38 74 Level 2 44 | . 49 . Level 3 . | . . . Level 4 . | . . . Level 5 . | . . . High Security . | . . . Max Security . | . . . Squads Dispatched 13 | . 13 . Investigation 10 | . 10 . Extermination . | . . . Reinforcement 3 | . 3 . Assault . | . . . Garrison . | . . . Intercept . | . . . Construction Impeded . | . . . Haulers Reinforced . | . . . Stealth | -11 -10 -10 --------- Run | Scr Mat Min Distress Signals 2 | . 2 . Communications Jammed . | . . . Distress Signals . | . . . Times Spotted 56 | . 48 8 Peak Tracking Total 8 | . 8 3 Tactical Retreats 2 | . . 2 Traps | -11 -10 -10 ------- Run | Scr Mat Min Traps Triggered 5 | . 5 . Indirectly . | . . . Trap Hack Attempts . | . . . Triggered . | . . . Disarmed . | . . . Reprogrammed . | . . . Reused . | . . . Traps Extracted . | . . . Installed . | . . . Triggered 1 | . 1 . Machines | -11 -10 -10 ---------- Run | Scr Mat Min Machines Disabled 3 | . 3 . Max in Single Turn 1 | . 1 . Machines Sabotaged . | . . . Garrisons Compromised . | . . . Overloaded Fab Kills . | . . . Fab Network Shutdowns . | . . . Hacking | -11 -10 -10 --------- Run | Scr Mat Min Machines Accessed 9 | . 8 1 Terminals 5 | . 5 . Fabricators . | . . . Repair Stations 1 | . 1 . Recycling Units 2 | . 2 . Scanalyzers . | . . . Garrison Access . | . . . Total Hacks 39 | . 38 1 Successful 31 | . 30 1 Failed 8 | . 8 . Catastrophic 1 | . 1 . Database Lockouts . | . . . Manual 15 | . 15 . Terminals 18 | . 18 . Fabricators . | . . . Repair Stations 15 | . 15 . Recycling Units 5 | . 5 . Scanalyzers . | . . . Garrison Access . | . . . Terminal Hacks 5 | . 4 1 Open Door 1 | . . 1 Alert Level 1 | . 1 . Unreport Threat 1 | . 1 . Locate Traps 1 | . 1 . Zone Layout 1 | . 1 . Fabricator Hacks . | . . . Repair Station Hacks 14 | . 14 . Scan Component 7 | . 7 . Repair 7 | . 7 . Recycling Unit Hacks 3 | . 3 . Report Inventory 2 | . 2 . Retrieve Components 1 | . 1 . Scanalyzer . | . . . Garrison Access Hacks . | . . . Unauthorized Hacks 9 | . 9 . Terminals 6 | . 6 . Track 1 | . 1 . Botnet 3 | . 3 . Disrupt 1 | . 1 . Operators 1 | . 1 . Fabricators . | . . . Repair Stations 1 | . 1 . Mechanics 1 | . 1 . Recycling Units 2 | . 2 . Tunnel 2 | . 2 . Scanalyzers . | . . . Garrison Access . | . . . Data Cores Recovered 1 | . 1 . Used 1 | . 1 . Hacking Detections 7 | . 7 . Full Trace Events 6 | . 6 . Feedback Events . | . . . Feedback Blocked . | . . . Robot Schematics Acquired . | . . . Robots Built . | . . . Matter . | . . . Time . | . . . Total Robot Build Rating . | . . . Part Schematics Acquired . | . . . Parts Built . | . . . Matter . | . . . Time . | . . . Total Part Build Rating . | . . . Parts Repaired 7 | . 7 . Time 212 | . 212 . Parts Recycled . | . . . Recycled Matter . | . . . Retrieved Matter . | . . . Retrieved Components 1 | . 1 . Parts Scanalyzed . | . . . Part Schematics Acquired . | . . . Parts Damaged . | . . . Bothacking | -11 -10 -10 ------------ Run | Scr Mat Min Used RIF Installer . | . . . Robots Hacked . | . . . Non-combat . | . . . Combat . | . . . Robot Hacks Applied . | . . . Relay Couplers Released . | . . . Robots Rewired . | . . . Allies Hacked . | . . . Hacks Repelled . | . . . Allies | -11 -10 -10 -------- Run | Scr Mat Min Total Allies . | . . . Largest Group . | . . . Highest-Rated Group . | . . . Highest-Rated Ally . | . . . Total Orders . | . . . Ally Attacks . | . . . Total Damage . | . . . Kills . | . . . Allies Corrupted . | . . . Allies Melted . | . . . Intel | -11 -10 -10 ------- Run | Scr Mat Min Robot Analysis Total . | . . . Derelict Logs Recovered . | . . . Drone Launches . | . . . Drone Recoveries . | . . . Exploration | -11 -10 -10 ------------- Run | Scr Mat Min Turns Passed 1787 | 16 1628 143 Spaces Moved 1016 | 12 913 91 Core . | . . . Treads 308 | . 289 19 Legs 10 | . 10 . Wheels 698 | 12 614 72 Hover . | . . . Flight . | . . . Fastest Speed 80 | 90 80 100 Average Speed 113 | 90 113 112 Slowest Speed 160 | 90 160 160 Overloaded Moves . | . . . Propulsion Burnouts . | . . . Robots Hopped . | . . . Cave-ins Triggered . | . . . Exploration Rate (%) 40 | 2 97 21 Regions Visited 2 Branch Regions 1 Pre-discovered Areas 2 | . 2 . Known Exits Taken . | . . . Unknown Exits Taken 2 | 1 1 . Scrap Searched 1 | . . 1 Spaces Dug . | . . . Terrain Destroyed 13 | . 13 . Melee . | . . . Projectile . | . . . AOE 13 | . 13 . Terrain Rammed . | . . . Walls Destroyed . | . . . Machines Disabled . | . . . Actions | -11 -10 -10 --------- Run | Scr Mat Min Total 1438 | 17 1309 112 Wait 242 | . 235 7 Move 1014 | 11 912 91 Hop . | . . . Pick Up 12 | . 11 1 Fast Attach 12 | . 12 . Attach 3 | . 3 . Detach . | . . . Swap 19 | 3 13 3 Drop 14 | 3 11 . Fire 122 | . 112 10 Melee . | . . . Ram . | . . . Kick . | . . . Crush . | . . . Escape Stasis . | . . . Rewire . | . . . Trap . | . . . Miscellaneous . | . . . Route ------- -11/Scrapyard -10/Materials (discovered 4 exits: *Mat x3 / *Min) -10/Mines History --------- Turn | Location | Event 8 | -11/Scrapyard | Discovered new exit (range 0) 17 | -11/Scrapyard | Entered Materials 294 | -10/Materials | Destroyed 7 combat bots 328 | -10/Materials | Lost 3 parts (1n2w) 353 | -10/Materials | Build established: Mutant 371 | -10/Materials | Discovered new exit (range 8) 413 | -10/Materials | Identified exit to Materials 619 | -10/Materials | Discovered exit to Materials (range 10) 662 | -10/Materials | Discovered new exit (range 7) 771 | -10/Materials | Core integrity fell below 50% 925 | -10/Materials | Repaired Lgt. Treads 958 | -10/Materials | Repaired EM Shotgun 992 | -10/Materials | Repaired EM Shotgun 1032 | -10/Materials | Repaired Lgt. Armor Plating 1068 | -10/Materials | Repaired EM Shotgun 1110 | -10/Materials | Repaired Imp. Heat Sink 1140 | -10/Materials | Repaired Ion Engine 1168 | -10/Materials | Core integrity fell below 20% 1393 | -10/Materials | Discovered exit to Materials (range 8) 1645 | -10/Materials | Entered Mines 1648 | -10/Mines | Found the Drone Emporium 1652 | -10/Mines | Found Prototype Device 1668 | -10/Mines | Met a Derelict bent on vengeance 1788 | -10/Mines | Destroyed by G-47 Trooper with Particle Gun Last Messages --------------- 01648_ 8W-VBX(g): "Well that was anticlimactic. Heard you outside and thought you were from the Merchants Guild. I haven't even officially opened my Drone Emporium yet but am totally ready to tell them where they can shove that C&D." 01650_ 8W-VBX(g): "I'm a fan of the free market. Free drones for all! No strings attached!" 01652_ Acquired Prototype Device. 01679_ S-10 Pest destroyed. 01687_ Acquired 10 matter. 01689_ Acquired 6 matter. 01694_ Acquired 4 matter. 01703_ E%&YVTK#AOTNSS/JM5EH O<0179R,ZTJUNMU, 01713_ Searching scrap... 01713_ Found Welding Torch. 01713_ Found Lrg. Matter Pod. 01713_ Found Sml. Matter Pod. 01713_ Found 31 Matter. 01744_ G-34 Mercenary destroyed. 01747_ Acquired 10 matter. 01765_ R-06 Scavenger collects Heat Sink. Map ----- +----------------------------------------------------+ | ?????????????????????????????????????????????????? | | ?????????????????????????????????????????????????? | | ?????????????????????????????????????????????????? | | ?????????????????????????????????????????????????? | | ?????????????????????????????????????????????????? | | ?????????????????????????????????????????????????? | | ?????????????????????????????????????????????????? | | ?????????????????????????????????????????????????? | | ?????????????????????????????????????????????????? | | ?????????????????????????????????????????????????? | | ?????????????????????????????????????????????????? | | ???????????????????????????? ???????????????????? | | ???????????????????????????? ????????????????? | | ???????????????????????????? ??????????????? | | ??????????????????????????? ?????????????? | | ??????????????????????????? ??????????????? | | ??????????????????????????? ???????????????? | | ?######???????????????????? ????????????????? | | ##""""##??????????????????# #????????????????? | | #" "#????????????????## #????????????????? | | #" "#????????????????# #?????????????????? | | ## ##???????????????## #?????????????????? | | ### ###?????#?????????? g ##????????????????? | | # X ##??? #??######?? #????????????????? | | # #??? ???# ??# #????????????????? | | # #??? ???# """ ###@ #?????????????????? | | # #??? ???# """ ##?????????????????? | | # #??# ???# """ ##??????????????????? | | # #?? # ## ##???????????????????? | | # #?# ##### # ## #????????????????????? | | # #?? #???# ?# ## #????????????????????? | | # #?? #???#######%##!|#????????????????????? | | # #?? #??????# ## %##???????????????????? | | # ### #??????# #### ! !##??????????????????? | | # #??????# ### #??????????????????? | | # ## ##??????# ##?????????????????? | | ##########=#???????##### #?????????????????? | | ?????????# #???????????## #?????????????????? | | ?????????#=#???????????## ##?????????????????? | | ?????????#=############# ####??????????????????? | | ?????????#%*[%=* ##?????????????????????? | | ?????????############### ##??????????????????????? | | ???????????????????????###???????????????????????? | | ?????????????????????????????????????????????????? | | ?????????????????????????????????????????????????? | | | | | | | | | | | +----------------------------------------------------+ Best States ------------- Heat Dissipation 25 Energy Generation 10 Energy Capacity 250 Matter Stores 300 Matter Capacity 300 Sight Range 16 Terrain Scan Density 10 Evasion (%) 42 Recoil Reduction 2 Offensive Hacking 10 Item Schematics ----------------- None Robot Schematics ------------------ None Fabricated ------------ Nothing Alien Tech Used ----------------- None Achievements -------------- None Challenges ------------ None Game ------ Seed SurgeArmageddonMantle Manual? 0 Play Time 00:21:08 Cumulative 96.8 hours Start 2022.01.24 @ 13:51:46 End 2022.01.24 @ 14:12:52 Sessions 1 Manual Loads 0 Difficulty Rogue Special Mode None Game No. 57 Rogue 57 Adventurer 0 Explorer 0 Win Type - Total 0 Types 0/0/0/0/0/0/0/0/0 Lore% 43 Gallery% 39 Achievement% 33 Wizard Run 0 Options --------- ASCII 0 Keyboard 0 Movement Mouse Keybinds 0 Fullscreen 2 Font 24/Smallcaps Map View 76x50 Tactical HUD 1 Map Filters NONE Filters NONE Steam 1 RUN: f29d6fac-59c1-4e91-98e5-7f2afe7b5fd6